bitfinex/quotes_ETHUSD_20250328
["timestamp","ask_amount","ask_price","bid_price","bid_amount"]
[1743162892599,5.25541,1902.8,1902.6,6.393]
[1743162892600,10.51099,1902.8,1902.6,6.393]
[1743162892820,5.25568,1902.7,1902.6,6.393]
[1743162895614,6.306789,1902.7,1902.6,6.393]
[1743162896834,5.25568,1902.7,1902.6,6.393]
[1743162898407,5.25568,1902.7,1902.6,7.44501648]
[1743162900139,5.25568,1902.7,1902.6,8.99281648]
[1743162900842,10.51101,1902.8,1902.6,8.99281648]
[1743162901038,5.25568,1902.7,1902.6,7.9408]
[1743162901541,10.51093,1902.8,1902.6,7.9408]
[1743162901734,5.25541,1902.8,1902.6,7.9408]
[1743162902043,10.51106,1902.8,1902.6,7.9408]
[1743162902244,5.25568,1902.7,1902.6,7.9408]
[1743162902936,5.25568,1902.7,1902.6,6.393]
[1743162903147,5.25568,1902.7,1902.4,6.75893]
[1743162903443,5.25568,1902.7,1902.6,6.387]
[1743162903942,6.83248,1902.7,1902.6,6.387]
[1743162904115,5.25568,1902.7,1902.6,6.387]
[1743162905448,8.92494586,1902.7,1902.6,6.387]
[1743162905645,5.25665,1902.4,1902.2,1.5589]
[1743162905832,5.25665,1902.4,1902.3,6.385]
[1743162906367,5.25665,1902.4,1901.6,1.6336]
[1743162906368,1.6293,1902.3,1901.6,1.6336]
[1743162906562,5.25892,1901.6,1901.4,1.6336]
[1743162906852,5.25865,1901.7,1901.4,8.0176]
[1743162907022,10.5173,1901.7,1901.4,8.0176]
[1743162907209,5.25882,1901.6,1901.4,8.0176]
[1743162907948,5.259,1901.5,1901.4,6.384]
[1743162908349,6.310782,1901.5,1901.4,6.383]
[1743162908550,5.25941,1901.4,1901.0,5.26024]
[1743162908752,5.25941,1901.4,1901.1,6.383]
[1743162908962,5.25941,1901.4,1901.3,1.06989255]
[1743162908963,7.87761686,1901.4,1901.3,1.06989255]
[1743162909320,7.879282,1901.5,1901.3,1.06989255]
[1743162909542,4.18655686,1901.7,1901.3,1.06989255]
[1743162909740,5.25928,1901.4,1901.3,1.06989255]
[1743162910133,2.61815686,1901.5,1901.3,1.06989255]
[1743162910329,1.5665,1901.3,1900.7,29.4393]
[1743162910529,7.87911686,1900.8,1900.1,1.6513]
[1743162910729,2.61815686,1900.5,1900.2,6.383]
[1743162910935,5.26216,1900.4,1900.2,6.383]
[1743162911129,7.87993686,1900.5,1900.2,6.383]
[1743162911130,2.61815686,1900.5,1900.2,6.383]
[1743162911352,0.78791169,1900.7,1900.2,6.383]
[1743162911353,5.26232,1900.3,1900.2,6.383]
[1743162911721,5.26218,1900.4,1900.2,6.383]
[1743162912251,10.52446,1900.4,1900.2,6.383]
[1743162912461,9.19459855,1900.4,1900.2,6.383]
[1743162912645,5.26232,1900.3,1900.2,6.383]
[1743162913322,5.26264,1900.2,1900.0,27.794]
[1743162913628,5.26244,1900.3,1900.1,6.383]
[1743162914037,5.2626,1900.2,1900.1,6.383]
[1743162914963,5.2626,1900.2,1900.0,28.87098952]
[1743162915163,5.26365,1899.9,1899.7,1.5104]
[1743162915333,10.52762,1899.8,1899.6,1.03506036]
[1743162915533,10.52762,1899.8,1899.7,6.381]
[1743162916266,5.26454,1899.5,1899.4,1.5104]
[1743162916463,5.26454,1899.5,1899.4,7.8924]
[1743162916634,5.26454,1899.5,1899.4,1.5104]
[1743162916962,5.26389,1899.8,1899.4,7.8924]
[1743162917163,10.21,1900.0,1899.6,0.55]
[1743162917365,10.21,1900.0,1899.5,3.55]
[1743162917366,5.26342,1900.0,1899.7,1.6176]
[1743162917736,5.2636,1899.9,1899.7,1.6176]
[1743162917959,5.26371,1899.8,1899.7,1.6176]
[1743162918632,5.26371,1899.8,1899.6,1.06950969]
[1743162918851,5.26398,1899.7,1899.5,1.5158]
[1743162919135,5.26343,1899.9,1899.6,6.382]
[1743162919368,5.26373,1899.8,1899.6,6.382]
[1743162919535,5.26398,1899.7,1899.6,6.382]
[1743162920130,5.26373,1899.8,1899.6,6.382]
[1743162920566,10.52768,1899.8,1899.6,6.382]
[1743162920866,5.26398,1899.7,1899.6,6.382]
[1743162921232,5.26398,1899.7,1899.6,6.38]
[1743162922264,6.316752,1899.7,1899.6,6.38]
[1743162922863,5.26374,1899.8,1899.6,6.38]
[1743162923066,4.99254,1899.8,1899.6,6.38]
[1743162923271,5.26398,1899.7,1899.6,6.38]
[1743162924766,5.26482,1899.4,1899.2,3.0]
[1743162924966,5.26562,1899.2,1898.9,27.809]
[1743162925142,5.26562,1899.2,1899.0,6.379]
[1743162925476,5.26565,1899.1,1899.0,6.379]
[1743162925786,5.26592,1899.0,1898.9,27.809]
[1743162925938,5.26565,1899.1,1898.9,34.188]
[1743162926134,15.47527,1899.3,1899.0,6.378]
[1743162926770,5.26537,1899.2,1899.0,6.378]
[1743162927674,10.21,1899.3,1899.1,5.26561]
[1743162927879,10.21,1899.3,1899.1,10.53112]
[1743162928088,10.21,1899.3,1899.1,5.26551]
[1743162928678,10.21,1899.3,1899.0,13.29732]
[1743162928905,10.21,1899.3,1899.0,18.5631]
[1743162929240,10.21,1899.3,1899.1,5.26562]
[1743162929461,5.26417,1899.7,1899.3,5.26491]
[1743162929666,5.26417,1899.7,1899.3,10.52988]
[1743162930067,10.52833,1899.7,1899.3,5.26491]
[1743162930243,5.26416,1899.7,1899.3,10.52986]
[1743162930650,5.26422,1899.7,1899.4,1.6399]
[1743162930851,5.26422,1899.7,1899.5,6.377]
[1743162931144,5.26426,1899.6,1899.5,6.377]
[1743162931379,6.77306,1899.6,1899.5,6.377]
[1743162931580,1.5088,1899.6,1899.5,6.377]
[1743162931776,5.26426,1899.6,1899.5,6.377]
[1743162932646,5.26517,1899.3,1899.0,3.0]
[1743162932850,5.26537,1899.2,1899.1,6.375]
[1743162933880,10.21,1899.5,1899.1,6.375]
[1743162934061,5.26486,1899.4,1899.1,11.64063]
[1743162934688,5.2651,1899.3,1899.1,6.375]
[1743162935366,5.26486,1899.4,1899.1,6.375]
[1743162935872,10.21,1899.5,1899.3,5.26498]
[1743162936071,10.21,1899.5,1899.3,6.85938]
[1743162936472,10.21,1899.5,1899.3,1.5944]
[1743162936660,15.47462,1899.5,1899.3,1.5944]
[1743162937077,15.47462,1899.5,1899.1,16.90609]
[1743162937262,15.47462,1899.5,1899.2,5.26536]
[1743162938295,10.21,1899.5,1899.2,5.26522]
[1743162938507,10.21,1899.5,1899.3,5.265]
[1743162938670,5.26431,1899.6,1899.3,5.265]
[1743162938868,5.26431,1899.6,1899.2,5.26522]
[1743162938869,1.6117,1899.7,1899.1,5.2655]
[1743162939095,10.5289,1899.6,1899.4,6.371]
[1743162939293,5.2644,1899.6,1899.4,6.371]
[1743162939679,5.26454,1899.5,1899.4,6.371]
[1743162940176,5.2644,1899.6,1899.4,6.371]
[1743162940690,5.26454,1899.5,1899.4,6.371]
[1743162942193,10.52875,1899.6,1899.4,6.371]
[1743162942412,6.87582,1899.7,1899.4,6.371]
[1743162942615,5.26437,1899.6,1899.4,6.371]
[1743162943176,5.26454,1899.5,1899.4,6.371]
[1743162943405,10.52875,1899.6,1899.4,6.371]
[1743162943938,5.26454,1899.5,1899.4,6.371]
[1743162944204,5.26437,1899.6,1899.4,6.371]
[1743162944697,10.52881,1899.6,1899.4,6.371]
[1743162944877,5.26437,1899.6,1899.4,6.371]
[1743162945367,10.52879,1899.6,1899.4,6.371]
[1743162945573,5.26454,1899.5,1899.4,6.371]
[1743162945968,5.26454,1899.5,1899.1,5.26562]
[1743162946168,5.26498,1899.4,1899.2,6.367]
[1743162946373,10.53005,1899.4,1899.2,6.367]
[1743162946580,5.26498,1899.4,1899.2,6.367]
[1743162947078,5.2643,1899.6,1899.3,5.26509]
[1743162947300,10.52816,1899.7,1899.3,10.53003]
[1743162947513,5.26432,1899.6,1899.4,1.5358]
[1743162947903,10.52882,1899.6,1899.4,1.5358]
[1743162948104,5.26432,1899.6,1899.4,1.5358]
[1743162948305,5.26454,1899.5,1899.2,18.42628]
[1743162948494,10.5287,1899.6,1899.2,18.42628]
[1743162948691,5.26456,1899.5,1899.2,13.16094]
[1743162949009,5.26456,1899.5,1899.2,18.42618]
[1743162949217,10.52874,1899.6,1899.3,5.26509]
[1743162949411,5.26432,1899.6,1899.3,10.53004]
[1743162949716,10.52873,1899.6,1899.2,18.42626]
[1743162950017,5.26432,1899.6,1899.3,5.26507]
[1743162950226,10.52874,1899.6,1899.3,5.26507]
[1743162950624,5.2646,1899.5,1899.2,13.1609]
[1743162951031,10.52875,1899.6,1899.2,18.42611]
[1743162951323,5.26432,1899.6,1899.3,5.26508]
[1743162953927,5.26399,1899.7,1899.3,10.52999]
[1743162954142,10.52811,1899.7,1899.3,10.52999]
[1743162954313,5.26428,1899.6,1899.3,5.26491]
[1743162954515,5.26399,1899.7,1899.3,5.26491]
[1743162954713,5.26377,1899.8,1899.4,5.26458]
[1743162954947,5.26382,1899.8,1899.5,5.26441]
[1743162955103,5.26382,1899.8,1899.4,5.26471]
[1743162955735,1.5356,1899.9,1899.3,5.26505]
[1743162956033,11.8352,1900.2,1899.4,6.7922]
[1743162956351,6.01,1901.0,1899.4,6.7922]
[1743162956352,1.6252,1900.8,1900.5,5.2615]
[1743162956501,1.6252,1900.8,1900.6,6.359]
[1743162957132,1.16846297,1901.0,1900.7,6.78881]
[1743162957309,1.16846297,1901.0,1900.8,5.26084]
[1743162957515,1.16846297,1901.0,1900.7,9.41644491]
[1743162957838,1.16846297,1901.0,1900.8,5.2608]
[1743162958138,1.16846297,1901.0,1900.8,10.52164]
[1743162958351,1.6252,1901.2,1900.8,10.52164]
[1743162958642,2.62765491,1901.4,1900.7,1.5276]
[1743162958643,2.62765491,1901.1,1900.7,1.5276]
[1743162958848,4.20835491,1901.1,1900.6,11.62024]
[1743162959067,4.20835491,1901.1,1900.6,6.359]
[1743162959235,5.1551754,1901.1,1900.6,11.62048]
[1743162959752,5.1551754,1901.1,1900.6,6.359]
[1743162959930,5.1551754,1901.1,1900.6,11.62047]
[1743162960133,4.20835491,1901.1,1900.6,11.62047]
[1743162960681,4.20835491,1901.1,1900.6,6.359]
[1743162961137,14.41835491,1901.1,1900.6,6.359]
[1743162961339,11.7907,1901.1,1900.7,5.26101]
[1743162961755,14.41835491,1901.1,1900.6,6.359]
[1743162961979,19.67853491,1901.1,1900.6,6.359]
[1743162962157,14.41835491,1901.1,1900.6,11.62037]
[1743162962354,14.41835491,1901.1,1900.6,16.88166]
[1743162962564,14.41835491,1901.1,1900.6,11.62029]
[1743162962565,13.23253549,1901.1,1900.6,11.62029]
[1743162962883,11.7907,1901.1,1900.6,16.88167]
[1743162963183,11.7907,1901.1,1900.7,5.26117]
[1743162963352,11.7907,1901.1,1900.8,5.26075]
[1743162963747,11.7907,1901.1,1900.9,5.2604]
[1743162963748,10.21,1901.1,1900.9,5.2604]
[1743162964051,10.21,1901.1,1901.0,5.26038]
[1743162964696,10.21,1901.1,1900.9,5.2604]
[1743162964697,1.6064,1901.4,1900.9,5.26066]
[1743162964977,10.21,1901.6,1901.1,10.51994]
[1743162965302,2.62765491,1901.4,1901.2,6.35]
[1743162965877,4.5922244,1901.6,1901.2,6.35]
[1743162966248,1.5495,1901.7,1901.2,11.60971]
[1743162966449,1.5495,1901.7,1901.3,5.2594]
[1743162966907,4.19415491,1902.0,1901.3,2.62765491]
[1743162967182,10.21,1902.0,1901.7,5.25825]
[1743162967486,2.62765491,1902.0,1901.8,6.348]
[1743162968076,7.88507491,1902.1,1901.8,6.348]
[1743162968264,5.25742,1902.1,1901.8,6.348]
[1743162969287,10.51496,1902.1,1901.8,6.348]
[1743162969460,5.25742,1902.1,1901.8,6.348]
[1743162969989,5.25762,1902.0,1901.8,6.348]
[1743162970488,1.5126,1901.8,1900.9,27.821]
[1743162970785,13.14476491,1901.7,1901.2,5.25966]
[1743162970969,5.25874,1901.6,1901.2,5.25966]
[1743162971172,10.51767,1901.6,1901.2,5.25966]
[1743162971372,10.51766,1901.6,1901.2,5.25966]
[1743162971569,5.25915,1901.5,1901.1,10.52003]
[1743162971763,10.51764,1901.6,1901.2,5.2598]
[1743162971962,5.25873,1901.6,1901.2,5.2598]
[1743162972966,5.25873,1901.6,1901.2,5.25974]
[1743162973311,10.51887,1901.4,1901.0,6.87848]
[1743162973490,1.051721,1901.6,1901.1,6.342]
[1743162973491,5.25977,1901.3,1901.1,6.342]
[1743162973676,6.77225,1901.3,1901.1,6.342]
[1743162973874,10.21,1901.5,1901.1,6.342]
[1743162973875,20.72823,1901.5,1901.1,6.342]
[1743162974206,16.98154,1901.5,1901.1,6.342]
[1743162974505,5.25937,1901.4,1901.1,6.342]
[1743162974803,5.25937,1901.4,1901.1,11.60206]
[1743162975110,16.98154,1901.5,1901.1,11.60206]
[1743162975280,22.24078,1901.5,1901.1,11.60206]
[1743162975470,5.25931,1901.4,1901.1,6.342]
[1743162975672,10.51877,1901.4,1901.1,6.342]
[1743162975904,5.25971,1901.3,1901.1,6.342]
[1743162976062,5.25983,1901.2,1901.1,6.342]
[1743162976267,7.483437,1901.4,1901.1,6.342]
[1743162976472,12.742917,1901.4,1901.1,6.342]
[1743162976981,5.25957,1901.3,1901.1,6.342]
[1743162979201,5.25957,1901.3,1901.2,6.337]
[1743162980896,10.21,1901.4,1901.2,6.337]
[1743162981064,15.46937,1901.4,1901.2,6.337]
[1743162981469,5.25955,1901.3,1901.2,6.337]
[1743162981681,10.21,1901.4,1901.2,6.337]
[1743162981880,10.21,1901.4,1901.3,5.25955]
[1743162982099,7.381292,1902.0,1901.4,1.5382]
[1743162982302,2.123662,1902.0,1901.5,5.25891]
[1743162982604,5.25805,1901.9,1901.5,10.51769]
[1743162982792,5.25736,1902.1,1901.7,5.25827]
[1743162982972,5.25785,1902.0,1901.8,6.335]
[1743162983300,5.25789,1901.9,1901.8,6.335]
[1743162983708,5.25785,1902.0,1901.8,6.335]
[1743162983871,5.25785,1902.0,1901.4,4.44262621]
[1743162983872,0.80806158,1902.0,1901.4,1.5382]
[1743162984099,5.25855,1901.7,1901.5,6.334]
[1743162984532,5.25872,1901.6,1901.5,6.334]
[1743162986250,5.25902,1901.5,1901.1,1.577]
[1743162986542,5.26023,1901.1,1900.9,29.3487]
[1743162986839,10.51994,1901.2,1901.0,6.331]
[1743162987008,10.51992,1901.2,1901.0,6.331]
[1743162987333,5.25993,1901.2,1901.0,6.331]
[1743162988817,5.25955,1901.3,1901.0,6.331]
[1743162990429,5.25985,1901.2,1901.0,6.331]
[1743162991531,5.25955,1901.3,1901.0,6.331]
[1743162991731,5.2593,1901.4,1901.0,11.59137]
[1743162991905,15.46905,1901.5,1901.2,5.25978]
[1743162991906,15.46909,1901.5,1901.2,5.25978]
[1743162992111,5.25909,1901.5,1901.1,10.52006]
[1743162992429,6.78476,1901.6,1901.1,10.52006]
[1743162992430,10.51766,1901.6,1901.3,1.515]
[1743162992738,10.51765,1901.6,1901.3,1.515]
[1743162992938,5.25893,1901.6,1901.3,1.515]
[1743162993143,5.25846,1901.7,1901.3,1.515]
[1743162993311,5.25785,1902.0,1901.3,1.515]
[1743162993312,15.46805,1901.9,1901.3,4.41942621]
[1743162993518,5.25805,1901.9,1901.5,5.25888]
[1743162993714,5.25805,1901.9,1901.6,6.326]
[1743162994449,10.51656,1901.8,1901.6,6.326]
[1743162994801,5.25845,1901.7,1901.6,6.326]
[1743162995638,5.25819,1901.8,1901.6,6.326]
[1743162995845,5.25819,1901.8,1901.4,7.88031872]
[1743162995846,9.39648872,1901.7,1901.4,6.325]
[1743162996004,2.62119872,1901.6,1901.4,6.325]
[1743162996405,5.259,1901.5,1901.4,6.325]
[1743163000043,15.46872,1901.6,1900.9,4.6431]
[1743163000044,5.25939,1901.4,1900.9,4.6431]
[1743163000245,5.26018,1901.1,1901.0,6.321]
[1743163000646,5.26018,1901.1,1900.9,1.6431]
[1743163000887,5.26018,1901.1,1901.0,6.321]
[1743163001845,5.25961,1901.3,1901.0,6.321]
[1743163002446,10.21,1901.6,1901.2,2.62119872]
[1743163002678,10.21,1901.6,1901.3,1.5633]
[1743163002930,5.25845,1901.7,1901.3,6.82283]
[1743163003056,5.25828,1901.8,1901.4,7.88036872]
[1743163003392,5.25846,1901.7,1901.5,6.319]
[1743163003863,5.25828,1901.8,1901.5,6.319]
[1743163004219,10.51665,1901.8,1901.5,6.319]
[1743163004549,5.25828,1901.8,1901.5,6.319]
[1743163004774,5.25812,1901.9,1901.6,1.5366]
[1743163004983,5.25806,1901.9,1901.6,1.5366]
[1743163005153,5.25845,1901.7,1901.6,1.5366]
[1743163005363,5.25845,1901.7,1901.5,6.319]
[1743163005882,5.25766,1902.0,1901.6,5.2585]
[1743163005883,10.51548,1902.0,1901.6,5.2585]
[1743163006282,5.25771,1902.0,1901.6,5.2585]
[1743163006577,10.51552,1902.0,1901.6,5.2585]
[1743163007260,5.2579,1901.9,1901.6,5.2585]
[1743163007576,10.5173,1901.7,1901.4,1.5366]
[1743163007781,5.25878,1901.6,1901.5,6.316]
[1743163008680,5.25863,1901.7,1901.5,6.316]
[1743163009683,5.25872,1901.6,1901.5,6.316]
[1743163010502,5.25725,1902.2,1901.6,4.198]
[1743163010687,5.25745,1902.1,1901.7,5.31101502]
[1743163010852,5.25833,1901.8,1901.6,1.198]
[1743163011050,5.25845,1901.7,1901.6,6.313]
[1743163012415,5.25804,1901.9,1901.6,12.79702]
[1743163012707,5.25804,1901.9,1901.6,7.5384]
[1743163012862,5.25821,1901.8,1901.6,7.5384]
[1743163013261,5.25821,1901.8,1901.6,6.313]
[1743163013487,5.25845,1901.7,1901.6,6.313]
[1743163014310,5.25821,1901.8,1901.6,6.313]
[1743163015314,5.25793,1901.9,1901.6,6.313]
[1743163015523,5.25802,1901.9,1901.6,6.313]
[1743163015816,5.25845,1901.7,1901.6,6.313]
[1743163016411,5.25835,1901.8,1901.6,6.313]
[1743163017213,5.25792,1901.9,1901.6,11.57161]
[1743163017415,10.516,1901.9,1901.6,6.313]
[1743163017713,5.25845,1901.7,1901.6,6.313]
[1743163018687,5.2587,1901.7,1901.6,6.307]
[1743163019394,5.25845,1901.7,1901.6,6.307]
[1743163021504,5.25845,1901.7,1901.6,6.305]
[1743163021905,15.46794,1901.9,1901.6,6.305]
[1743163022107,15.46794,1901.9,1901.6,7.59]
[1743163022704,5.25733,1902.2,1901.7,1.2623]
[1743163022905,5.25651,1902.4,1901.8,1.31488301]
[1743163023109,5.25768,1902.0,1901.8,1.2623]
[1743163023837,5.2582,1901.8,1901.6,6.305]
[1743163023998,5.2582,1901.8,1901.6,1.2834]
[1743163024197,5.2582,1901.8,1901.7,6.303]
[1743163025617,5.25854,1901.7,1901.4,1.2071]
[1743163025820,5.25854,1901.7,1901.5,6.302]
[1743163026294,10.21,1902.0,1901.5,6.302]
[1743163026295,5.2579,1901.9,1901.5,6.302]
[1743163026527,15.46762,1902.0,1901.6,5.2587]
[1743163026737,5.25804,1901.9,1901.5,11.56087]
[1743163026933,5.25804,1901.9,1901.5,14.18144417]
[1743163027100,15.46762,1902.0,1901.5,14.18144417]
[1743163027101,10.21,1902.0,1901.7,7.87894417]
[1743163027301,15.46774,1902.0,1901.7,7.87894417]
[1743163027502,20.72561,1902.0,1901.7,2.62062417]
[1743163027936,20.72561,1902.0,1901.6,6.50657431]
[1743163028231,15.46774,1902.0,1901.7,5.25832]
[1743163028436,10.21,1902.0,1901.7,5.25832]
[1743163028638,5.25792,1901.9,1901.6,6.45384]
[1743163028816,5.25792,1901.9,1901.6,1.1953]
[1743163029422,5.25792,1901.9,1901.6,6.454]
[1743163029618,5.25792,1901.9,1901.7,6.3]
[1743163030433,5.25765,1902.0,1901.7,6.3]
[1743163031028,10.21,1902.2,1901.7,11.55844]
[1743163031212,10.21,1902.3,1901.8,1.2772]
[1743163031422,5.25781,1902.0,1901.9,6.298]
[1743163033151,5.25742,1902.1,1901.5,1.2211]
[1743163033152,7.87809417,1902.1,1901.5,1.2211]
[1743163033444,5.25845,1901.7,1901.6,6.297]
[1743163033607,5.25826,1901.8,1901.6,6.297]
[1743163034351,5.25793,1901.9,1901.6,6.297]
[1743163034563,10.51605,1901.9,1901.6,6.297]
[1743163035258,5.25826,1901.8,1901.6,6.297]
[1743163035556,5.2603,1901.1,1900.9,1.2558]
[1743163035756,5.2603,1901.1,1901.0,6.295]
[1743163036559,10.52,1901.2,1901.0,6.295]
[1743163036869,15.46946,1901.4,1901.0,11.55532]
[1743163037070,10.21,1901.4,1901.2,1.1919]
[1743163037271,15.4694,1901.4,1901.2,1.1919]
[1743163038375,5.25955,1901.3,1901.0,6.295]
[1743163038533,5.25955,1901.3,1901.0,7.27889852]
[1743163038736,15.46931,1901.4,1901.1,5.2601]
[1743163039381,20.72883,1901.4,1901.0,15.10730417]
[1743163039734,15.46931,1901.4,1901.0,20.36747417]
[1743163039942,15.46928,1901.4,1901.0,20.36738417]
[1743163040248,10.21,1901.4,1901.2,5.25983]
[1743163040646,5.25961,1901.3,1901.0,12.48659]
[1743163040855,10.21,1901.4,1901.2,6.29584935]
[1743163041373,5.259,1901.5,1901.2,6.29584935]
[1743163041568,5.25897,1901.6,1901.3,0.9531]
[1743163042563,5.25897,1901.6,1901.3,6.21263]
[1743163044148,5.25894,1901.6,1901.3,0.9531]
[1743163044350,10.51788,1901.6,1901.3,0.9531]
[1743163044706,5.25894,1901.6,1901.3,0.9531]
[1743163044988,5.2585,1901.7,1901.4,0.05259153]
[1743163045179,5.2585,1901.7,1901.5,6.29]
[1743163045382,5.25818,1901.8,1901.5,6.29]
[1743163045594,5.25818,1901.8,1901.5,11.549]
[1743163045959,5.25791,1901.9,1901.5,16.80781]
[1743163046159,5.2583,1901.8,1901.5,11.54881]
[1743163046379,5.2583,1901.8,1901.5,6.29]
[1743163046777,10.21,1902.1,1901.6,0.9495]
[1743163046978,5.2581,1901.9,1901.6,0.9495]
[1743163047182,5.2583,1901.8,1901.6,0.9495]
[1743163047491,5.25872,1901.7,1901.5,6.29]
[1743163047892,5.25872,1901.6,1901.5,6.29]
[1743163051077,5.25872,1901.6,1901.5,6.286]
[1743163051286,5.25955,1901.3,1901.2,0.9464]
[1743163051622,5.25955,1901.3,1901.2,7.2314]
[1743163052282,5.25955,1901.3,1901.2,0.9464]
[1743163052484,5.26011,1901.1,1901.0,27.805]
[1743163052702,7.88073417,1901.1,1901.0,27.805]
[1743163052871,5.26169,1900.6,1900.4,0.9946]
[1743163053076,5.26169,1900.6,1900.5,6.285]
[1743163053813,5.26169,1900.6,1900.5,7.36168155]
[1743163056772,5.26132,1900.7,1900.5,7.36168155]
[1743163057172,5.26149,1900.6,1900.5,7.36168155]
[1743163057373,5.26132,1900.7,1900.5,7.36168155]
[1743163057802,10.52273,1900.7,1900.5,7.36168155]
[1743163057991,5.26132,1900.7,1900.5,7.36168155]
[1743163058300,5.26089,1900.9,1900.6,2.62062417]
[1743163058477,5.26089,1900.9,1900.7,1.0035]
[1743163059002,6.31279,1900.9,1900.8,6.282]
[1743163059174,16.52279,1900.9,1900.8,6.282]
[1743163060202,15.47066,1900.9,1900.8,6.282]
[1743163062818,10.21,1900.9,1900.8,6.282]
[1743163063689,10.21,1900.9,1900.8,12.85078229]
[1743163064716,5.25984,1901.2,1900.8,12.85078229]
[1743163065114,10.51986,1901.2,1900.8,12.85078229]
[1743163065307,5.26019,1901.1,1900.8,12.85078229]
[1743163065492,5.25984,1901.2,1900.8,18.11154229]
[1743163065687,5.25984,1901.2,1900.8,19.15907601]
[1743163066012,5.25984,1901.2,1900.9,5.26061]
[1743163066315,5.25958,1901.3,1900.9,10.52118]
[1743163066623,5.25958,1901.3,1901.0,5.26036]
[1743163066912,5.25958,1901.3,1900.9,5.26052]
[1743163067118,5.25958,1901.3,1900.9,10.52107]
[1743163067498,5.25958,1901.3,1900.9,10.5211]
[1743163067810,5.25958,1901.3,1901.0,5.26035]
[1743163068009,10.51935,1901.3,1900.9,5.26052]
[1743163068315,5.2602,1901.1,1900.8,13.89830601]
[1743163068488,5.25983,1901.2,1900.8,19.15914601]
[1743163068689,5.25983,1901.2,1900.9,5.26066]
[1743163069117,5.25969,1901.3,1900.9,10.52095]
[1743163069524,5.25942,1901.4,1901.0,5.26011]
[1743163069690,10.51887,1901.4,1901.0,5.26011]
[1743163070019,5.25958,1901.3,1901.0,5.26011]
[1743163070643,5.25942,1901.4,1901.0,5.31270941]
[1743163070821,5.25942,1901.4,1901.1,0.8565]
[1743163071321,10.51888,1901.4,1901.1,0.8565]
[1743163071527,5.25942,1901.4,1901.1,0.8565]
[1743163072030,10.51891,1901.4,1901.1,0.8565]
[1743163072213,5.25942,1901.4,1901.1,0.8565]
[1743163072414,10.51822,1901.5,1901.1,6.11634]
[1743163072614,5.25931,1901.4,1901.2,1.02852385]
[1743163072834,5.25931,1901.4,1901.3,6.274]
[1743163073430,10.51821,1901.5,1901.3,6.274]
[1743163073619,5.25905,1901.5,1901.3,6.274]
[1743163073819,10.51822,1901.5,1901.3,6.274]
[1743163074038,5.25928,1901.4,1901.3,6.274]
[1743163076239,5.25905,1901.5,1901.3,6.274]
[1743163077144,5.25873,1901.6,1901.3,6.274]
[1743163077841,5.25873,1901.6,1901.3,11.53355]
[1743163078045,5.25873,1901.6,1901.4,0.8436]
[1743163079042,5.259,1901.5,1901.3,6.66504356]
[1743163079445,5.25873,1901.6,1901.3,6.66504356]
[1743163079927,10.51763,1901.6,1901.3,6.66504356]
[1743163080428,5.25915,1901.5,1901.3,6.66504356]
[1743163080749,5.25928,1901.4,1901.3,0.39104356]
[1743163081045,10.51873,1901.4,1901.1,5.26008]
[1743163081245,5.25928,1901.4,1901.3,6.267]
[1743163081651,5.25928,1901.4,1901.3,7.31968702]
[1743163082555,5.25882,1901.6,1901.3,7.31968702]
[1743163083652,10.51773,1901.6,1901.3,7.31968702]
[1743163084224,5.25882,1901.6,1901.3,6.267]
[1743163084435,10.51771,1901.6,1901.3,6.267]
[1743163084642,5.25882,1901.6,1901.3,6.267]
[1743163084847,10.51775,1901.6,1901.3,6.267]
[1743163085151,12.83062417,1901.8,1901.3,11.5264]
[1743163085152,10.51702,1901.7,1901.3,11.5264]
[1743163085358,10.51702,1901.7,1901.4,0.8104]
[1743163085728,5.25846,1901.7,1901.4,0.8104]
[1743163086561,5.25873,1901.6,1901.4,0.8104]
[1743163088158,5.25873,1901.6,1901.3,11.9142401]
[1743163089163,5.25928,1901.4,1901.3,0.3877001]
[1743163089351,5.2597,1901.3,1901.0,6.0729]
[1743163089560,5.2597,1901.3,1901.1,6.261]
[1743163090773,10.51878,1901.4,1901.1,6.261]
[1743163090957,5.25928,1901.4,1901.1,6.261]
[1743163091478,5.25906,1901.5,1901.1,11.52111]
[1743163091773,5.25906,1901.5,1901.3,0.8508]
[1743163092976,5.25906,1901.5,1901.3,1.23704116]
[1743163093342,5.25877,1901.6,1901.3,1.23704116]
[1743163093667,5.25877,1901.6,1901.3,6.49653116]
[1743163093873,10.51765,1901.6,1901.3,1.23704116]
[1743163094168,10.51765,1901.6,1901.3,6.49658116]
[1743163094377,5.25877,1901.6,1901.3,6.49658116]
[1743163095081,10.51766,1901.6,1901.3,6.49658116]
[1743163095283,5.25877,1901.6,1901.3,6.49658116]
[1743163095651,10.51765,1901.6,1901.3,6.49658116]
[1743163095847,10.51765,1901.6,1901.3,1.23704116]
[1743163096064,5.25901,1901.5,1901.3,1.23704116]
[1743163096264,5.25928,1901.4,1901.3,0.38624116]
[1743163096483,5.25901,1901.5,1901.2,5.2598]
[1743163096781,5.25877,1901.6,1901.2,10.51943]